fUST/lending_fUST_20250901
["ID","MTS","AMOUNT","RATE_DAILY","PERIOD"]
[382622448,1756682449301,-480.0,0.00016183,2]
[382622449,1756682449324,-546.75,0.00016183,2]
[382622450,1756682449349,-480.0,0.00016183,2]
[382622451,1756682449374,-207.70151326,0.00016183,2]
[382622452,1756682449398,-1120.06,0.00016183,2]
[382622453,1756682449424,-480.0,0.00016183,2]
[382622454,1756682449449,-480.0,0.00016183,2]
[382622455,1756682449473,-480.0,0.00016183,2]
[382622456,1756682449495,-480.0,0.00016183,2]
[382622457,1756682449519,-1005.84,0.00016183,2]
[382622458,1756682449541,-480.0,0.00016183,2]
[382622459,1756682449563,-480.0,0.00016183,2]
[382622460,1756682449585,-480.0,0.00016183,2]
[382622461,1756682449607,-480.0,0.00016183,2]
[382622462,1756682449630,-480.0,0.00016183,2]
[382622463,1756682449655,-1355.94,0.00016183,2]
[382622464,1756682449678,-500.0,0.00016183,2]
[382622465,1756682449711,-500.0,0.00016183,2]
[382622466,1756682449735,-500.0,0.00016183,2]
[382622467,1756682449758,-545.8,0.00016183,2]
[382622468,1756682449783,-480.0,0.00016183,2]
[382622469,1756682449806,-615.23,0.00016183,2]
[382622470,1756682450002,-511.66,0.00016183,2]
[382622471,1756682450027,-480.0,0.00016183,2]
[382622472,1756682450049,-480.0,0.00016183,2]
[382622473,1756682450072,-595.04,0.00016183,2]
[382622474,1756682450095,-624.74,0.00016183,2]
[382622475,1756682450118,-898.96,0.00016183,2]
[382622476,1756682450145,-604.95,0.00016183,2]
[382622477,1756682450169,-480.0,0.00016183,2]
[382622478,1756682450195,-480.0,0.00016183,2]
[382622479,1756682450220,-480.0,0.00016183,2]
[382622480,1756682450243,-480.0,0.00016183,2]
[382622481,1756682450268,-480.0,0.00016183,2]
[382622482,1756682450291,-480.0,0.00016183,2]
[382622483,1756682450314,-587.74,0.00016183,2]
[382622484,1756682450337,-480.0,0.00016183,2]
[382622485,1756682450363,-2770.55,0.00016183,2]
[382622486,1756682450387,-170.1022606,0.00016183,2]
[382622487,1756682450410,-50000.0,0.00016183,2]
[382622488,1756682450434,-5632.23,0.00016184,2]
[382622489,1756682450461,-2242.85,0.00016184,2]
[382622490,1756682450484,-480.0,0.00016184,2]
[382622491,1756682450508,-597.89,0.00016184,2]
[382622492,1756682450532,-1245.45,0.00016184,2]
[382622493,1756682450557,-3401.8,0.00016184,2]
[382622494,1756682450580,-1341.26,0.00016184,2]
[382622495,1756682450603,-480.0,0.00016184,2]
[382622496,1756682450625,-2345.35,0.00016184,2]
[382622497,1756682450649,-480.0,0.00016184,2]
[382622498,1756682450674,-1198.65,0.00016184,2]
[382622499,1756682450699,-700.0,0.00016184,2]
[382622500,1756682450722,-500.0,0.00016184,2]
[382622501,1756682450746,-2016.86186006,0.00016195,2]
[382622502,1756682450773,-452.545513,0.00016197,2]
[382622503,1756682450797,-1808.37186996,0.00016197,2]
[382622504,1756682450820,-425.99,0.00016281,3]
[382622505,1756682450843,-280.52556936,0.00016285,2]
[382622506,1756682450866,-209.40437684,0.00016285,2]
[382622507,1756682450890,-500.0,0.0001629,2]
[382622508,1756682450914,-480.0,0.00016291,2]
[382622509,1756682450937,-522.3,0.00016291,2]
[382622510,1756682450960,-480.0,0.00016291,2]
[382622511,1756682450983,-1447.52,0.00016291,2]
[382622512,1756682451006,-798.93,0.00016291,2]
[382622513,1756682451029,-480.0,0.00016291,2]
[382622514,1756682451053,-1015.69,0.00016291,2]
[382622515,1756682451076,-976.02,0.00016291,2]
[382622516,1756682451100,-744.88,0.00016291,2]
[382622517,1756682451123,-480.0,0.00016291,2]
[382622518,1756682451145,-480.0,0.00016291,2]
[382622519,1756682451170,-480.0,0.00016291,2]
[382622520,1756682451193,-570.96,0.00016291,2]
[382622521,1756682451215,-711.53,0.00016291,2]
[382622522,1756682451239,-480.0,0.00016291,2]
[382622523,1756682451262,-537.78,0.00016291,2]
[382622524,1756682451284,-480.0,0.00016291,2]
[382622525,1756682451306,-480.0,0.00016291,2]
[382622526,1756682451329,-850.54,0.00016291,2]
[382622527,1756682451352,-480.0,0.00016291,2]
[382622528,1756682451375,-722.16,0.00016291,2]
[382622529,1756682451398,-816.75,0.00016291,2]
[382622530,1756682451422,-713.29,0.00016291,2]
[382622531,1756682451444,-480.0,0.00016291,2]
[382622532,1756682451468,-480.0,0.00016291,2]
[382622533,1756682451491,-573.54,0.00016291,2]
[382622534,1756682451514,-480.0,0.00016291,2]
[382622535,1756682451538,-819.88,0.00016291,2]
[382622536,1756682451560,-643.47,0.00016291,2]
[382622537,1756682451584,-480.0,0.00016291,2]
[382622538,1756682451607,-480.0,0.00016291,2]
[382622539,1756682451629,-874.53,0.00016291,2]
[382622540,1756682451652,-613.95,0.00016291,2]
[382622541,1756682451677,-1060.03,0.00016291,2]
[382622542,1756682451703,-480.0,0.00016291,2]
[382622543,1756682451728,-2101.22,0.00016291,2]
[382622544,1756682451755,-480.0,0.00016291,2]
[382622545,1756682451779,-480.0,0.00016291,2]
[382622546,1756682451804,-480.0,0.00016291,2]
[382622547,1756682451828,-1308.72,0.00016291,2]
[382622548,1756682451851,-480.0,0.00016291,2]
[382622549,1756682451876,-3733.1,0.00016291,2]
[382622550,1756682451899,-480.0,0.00016291,2]
[382622551,1756682451923,-480.0,0.00016291,2]
[382622552,1756682451946,-480.0,0.00016291,2]
[382622553,1756682451969,-784.73,0.00016291,2]
[382622554,1756682451993,-1524.11,0.00016291,2]
[382622555,1756682452017,-5566.65,0.00016291,2]
[382622556,1756682452041,-480.0,0.00016291,2]
[382622557,1756682452065,-480.0,0.00016291,2]
[382622558,1756682452090,-480.0,0.00016291,2]
[382622559,1756682452114,-841.57,0.00016291,2]
[382622560,1756682452139,-480.0,0.00016291,2]
[382622561,1756682452163,-435.60249108,0.00016294,2]
[382622562,1756682452187,-480.0,0.00016294,2]
[382622563,1756682452211,-647.37,0.00016294,2]
[382622564,1756682452235,-480.0,0.00016294,2]
[382622565,1756682452258,-2280.77,0.00016294,2]
[382622566,1756682452282,-1490.87,0.00016294,2]
[382622567,1756682452307,-1883.5,0.00016294,2]
[382622568,1756682452331,-480.0,0.00016294,2]
[382622569,1756682452355,-480.0,0.00016294,2]
[382622570,1756682452378,-480.0,0.00016294,2]
[382622571,1756682452402,-656.45,0.00016294,2]
[382622572,1756682452426,-848.15,0.00016294,2]
[382622573,1756682452449,-480.0,0.00016294,2]
[382622574,1756682452474,-480.0,0.00016294,2]
[382622575,1756682452497,-480.0,0.00016294,2]
[382622576,1756682452520,-599.05,0.00016294,2]
[382622577,1756682452545,-671.93,0.00016294,2]
[382622578,1756682452568,-500.0,0.00016294,2]
[382622579,1756682452591,-500.0,0.00016294,2]
[382622580,1756682452614,-500.0,0.00016294,2]
[382622581,1756682452636,-500.0,0.00016294,2]
[382622582,1756682452659,-480.0,0.00016294,2]
[382622583,1756682452682,-1128.16,0.00016294,2]
[382622584,1756682452708,-480.0,0.00016294,2]
[382622585,1756682452731,-873.93,0.00016294,2]
[382622586,1756682452902,-1167.11,0.00016294,2]
[382622587,1756682452927,-480.0,0.00016294,2]
[382622588,1756682452950,-480.0,0.00016294,2]
[382622589,1756682452973,-480.0,0.00016294,2]
[382622590,1756682452997,-480.0,0.00016295,2]
[382622591,1756682453020,-480.0,0.00016295,2]
[382622592,1756682453043,-820.03,0.00016295,2]
[382622593,1756682453066,-480.0,0.00016295,2]
[382622594,1756682453089,-480.0,0.00016295,2]
[382622595,1756682453113,-480.0,0.00016295,2]
[382622596,1756682453138,-999.93,0.00016295,2]
[382622597,1756682453164,-480.0,0.00016295,2]
[382622598,1756682453188,-480.0,0.00016295,2]
[382622599,1756682453210,-480.0,0.00016295,2]
[382622600,1756682453233,-1145.12,0.00016295,2]
[382622601,1756682453256,-480.0,0.00016295,2]
[382622602,1756682453279,-480.0,0.00016295,2]
[382622603,1756682453302,-885.09,0.00016295,2]
[382622604,1756682453325,-556.52,0.00016295,2]
[382622605,1756682453348,-480.0,0.00016295,2]
[382622606,1756682453370,-480.0,0.00016295,2]
[382622607,1756682453393,-480.0,0.00016295,2]
[382622608,1756682453416,-480.0,0.00016295,2]
[382622609,1756682453440,-480.0,0.00016295,2]
[382622610,1756682453464,-480.0,0.00016295,2]
[382622611,1756682453486,-480.0,0.00016295,2]
[382622612,1756682453508,-480.0,0.00016295,2]
[382622613,1756682453529,-647.72,0.00016295,2]
[382622614,1756682453551,-480.0,0.00016295,2]
[382622615,1756682453574,-488.16,0.00016295,2]
[382622616,1756682453596,-1381.16,0.00016295,2]
[382622617,1756682453618,-480.0,0.00016295,2]
[382622618,1756682453641,-493.59,0.00016295,2]
[382622619,1756682453666,-442.97374211,0.00016295,2]
[382622620,1756682453688,-480.0,0.00016295,2]
[382622621,1756682453714,-480.0,0.00016295,2]
[382622622,1756682453737,-883.14,0.00016295,2]
[382622623,1756682453779,-472.50009557,0.00016295,2]
[382622624,1756682461477,5000.0,0.0001601,2]
[382622625,1756682484136,2688.30992881,0.0001601,2]
[382622626,1756682484250,2311.69007119,0.0001601,2]
[382622627,1756682507887,5000.0,0.0001601,2]
[382622628,1756682531343,2688.31992881,0.0001601,2]
[382622629,1756682531460,2311.68007119,0.0001601,2]
[382622630,1756682554919,5000.0,0.0001601,2]
[382622631,1756682564074,205.82067922,0.00015983,2]
[382622632,1756682576921,666.0,0.00015185,2]
[382622633,1756682577147,1816.50924959,0.0001601,2]
[382622634,1756682577256,3183.49075041,0.0001601,2]
[382622635,1756682599869,5000.0,0.0001601,2]
[382622636,1756682622452,1816.51924959,0.0001601,2]
[382622637,1756682622579,3183.48075041,0.0001601,2]
[382622638,1756682627449,6816.52924959,0.00015183,2]
[382622639,1756682627551,1284.03726541,0.00015183,2]
[382622640,1756682645950,5000.0,0.0001601,2]
[382622641,1756682669515,5000.0,0.0001601,2]
[382622642,1756682670429,3440.4446993,0.00015158,2]
[382622643,1756682677467,5000.0,0.0001601,2]
[382622644,1756682692811,1559.5653007,0.0001601,2]
[382622645,1756682693117,3440.4346993,0.0001601,2]
[382622646,1756682698990,-182.0390428,0.00016082,2]
[382622647,1756682702169,-267.87705765,0.00016082,2]
[382622648,1756682712119,180.70105,7.579e-05,2]
[382622649,1756682712360,180.70105,0.00010105,2]
[382622650,1756682712798,180.70105,0.00012631,2]
[382622651,1756682713050,180.70105,0.00015158,2]
[382622653,1756682716998,5000.0,0.0001601,2]
[382622655,1756682740983,836.7711007,0.0001601,2]
[382622656,1756682741092,4163.2288993,0.0001601,2]
[382622658,1756682764285,5000.0,0.0001601,2]
[382622659,1756682764880,553.7180971,0.00015119,2]
[382622660,1756682776763,283.0630036,0.00015119,2]
[382622661,1756682776877,1688.5723787,0.00015119,2]
[382622662,1756682777714,749.2341924,0.00015119,2]
[382622664,1756682786966,5000.0,0.0001601,2]
[382622665,1756682791662,270.58233978,0.00015388,2]
[382622666,1756682793453,1082.32935913,0.00015388,2]
[382622667,1756682795415,1209.29172999,0.00015388,2]
[382622668,1756682795547,1225.94932806,0.00015388,2]
[382622669,1756682797603,4329.31743653,0.00015388,2]
[382622670,1756682798923,800.0,0.00015941,2]
[382622671,1756682799571,3644.74323541,0.00015388,2]
[382622672,1756682799696,3119.81525917,0.00015388,2]
[382622674,1756682810606,5000.0,0.0001601,2]
[382622676,1756682818514,1880.19474083,0.0001601,2]
[382622677,1756682818621,3119.80525917,0.0001601,2]
[382622678,1756682822154,5753.43,0.00015094,2]
[382622679,1756682834741,1126.77474083,0.0001601,2]
[382622680,1756682834869,3873.22525917,0.0001601,2]
[382622681,1756682846591,-189.69645233,0.0001602,2]
[382622682,1756682846615,-30.35117456,0.00016077,2]
[382622683,1756682858231,5000.0,0.0001601,2]
[382622684,1756682872773,1000.0,0.00015082,2]
[382622686,1756682881480,126.78474083,0.0001601,2]
[382622687,1756682881599,4873.21525917,0.0001601,2]
[382622688,1756682889469,5000.0,0.0001601,2]
[382622689,1756682890364,126.79474083,0.00015388,2]
[382622690,1756682890486,582.98593,0.00015388,2]
[382622691,1756682892576,2839.1226833,0.00015388,2]
[382622692,1756682905554,5000.0,0.0001601,2]
[382622695,1756682928142,1577.9013867,0.0001601,2]
[382622696,1756682928260,815.44574682,0.0001601,2]
[382622698,1756682945135,-200.0,0.00016057,2]
[382622699,1756682945158,-67.04992171,0.00016074,3]
[382622711,1756683032061,-1950.9639495,0.00016027,2]
[382622712,1756683032072,-152.99007829,0.00016074,3]
[382622713,1756683032082,-285.21002779,0.00016074,2]
[382622715,1756683032091,-769.64882544,0.00016077,2]
[382622716,1756683032101,-255.90387194,0.00016077,2]
[382622717,1756683032111,-600.0,0.0001608,2]
[382622718,1756683032121,-403.683247,0.00016081,2]
[382622719,1756683032135,-796.316753,0.00016081,2]
[382622720,1756683032145,-1200.0,0.00016082,2]
[382622721,1756683032154,-300.0,0.00016082,2]
[382622722,1756683032164,-480.0,0.00016083,2]
[382622723,1756683032173,-1319.44,0.00016083,2]
[382622724,1756683032182,-480.0,0.00016083,2]
[382622725,1756683032191,-861.5,0.00016083,2]
[382622726,1756683032200,-490.34,0.00016083,2]
[382622727,1756683032209,-480.0,0.00016083,2]
[382622728,1756683032217,-480.0,0.00016083,2]
[382622729,1756683032226,-591.65,0.00016083,2]
[382622730,1756683032235,-480.0,0.00016083,2]
[382622731,1756683032244,-583.25,0.00016083,2]
[382622732,1756683032252,-599.74,0.00016083,2]
[382622733,1756683032261,-2655.11,0.00016083,2]
[382622734,1756683032271,-640.39,0.00016083,2]
[382622735,1756683032280,-480.0,0.00016083,2]
[382622736,1756683032289,-480.0,0.00016083,2]
[382622737,1756683032298,-1448.76,0.00016083,2]
[382622738,1756683032307,-480.0,0.00016083,2]
[382622739,1756683032316,-480.0,0.00016083,2]
[382622740,1756683032325,-480.0,0.00016083,2]
[382622741,1756683032335,-1093.45,0.00016083,2]
[382622742,1756683032343,-480.0,0.00016083,2]
[382622743,1756683032353,-2268.12,0.00016083,2]
[382622744,1756683032361,-470.93144174,0.00016083,2]
[382622745,1756683034280,-9.06855826,0.00016083,2]
[382622746,1756683034290,-480.0,0.00016083,2]
[382622747,1756683034299,-689.58,0.00016083,2]
[382622748,1756683034311,-480.0,0.00016083,2]
[382622749,1756683034320,-540.47,0.00016083,2]
[382622750,1756683034329,-480.0,0.00016083,2]
[382622751,1756683034339,-480.0,0.00016083,2]
[382622752,1756683034349,-1465.86446974,0.00016083,2]
[382622753,1756683034617,-305.86803484,0.00016083,2]
[382622815,1756683038083,-115.79749542,0.00016083,2]
[382622818,1756683038093,-574.09,0.00016083,2]
[382622819,1756683038102,-480.0,0.00016083,2]
[382622822,1756683038112,-2624.67662156,0.00016083,2]
[382622823,1756683038122,-258.67745959,0.00016083,2]
[382622825,1756683038134,-267.23378184,0.00016083,2]
[382622828,1756683038144,-189148.04649137,0.00016084,2]
[382622829,1756683038154,-151.0,0.000161,2]
[382622832,1756683038163,-800.0,0.00016127,2]
[382622833,1756683038173,-1950.96394949,0.00016158,2]
[382622836,1756683038183,-800.0,0.00016168,2]
[382622837,1756683038192,-480.0,0.00016182,2]
[382622840,1756683038202,-520.54,0.00016182,2]
[382622842,1756683038212,-480.0,0.00016182,2]
[382622844,1756683038222,-1438.44,0.00016182,2]
[382622846,1756683038231,-404.65764314,0.00016182,2]
[382622847,1756683038243,-480.0,0.00016182,2]
[382622850,1756683038253,-785.64,0.00016182,2]
[382622851,1756683038263,-480.0,0.00016182,2]
[382622854,1756683038273,-1013.33,0.00016182,2]
[382622856,1756683038284,-977.07,0.00016182,2]
[382622857,1756683038295,-746.79,0.00016182,2]
[382622860,1756683038305,-480.0,0.00016182,2]
[382622862,1756683038315,-480.0,0.00016182,2]
[382622863,1756683038325,-480.0,0.00016182,2]
[382622865,1756683038334,-480.0,0.00016182,2]
[382622867,1756683038344,-480.0,0.00016182,2]
[382622869,1756683038355,-480.0,0.00016182,2]
[382622871,1756683038364,-480.0,0.00016182,2]
[382622873,1756683038375,-567.17,0.00016182,2]
[382622875,1756683038384,-701.88,0.00016182,2]
[382622877,1756683038393,-480.0,0.00016182,2]
[382622879,1756683038402,-850.0,0.00016182,2]
[382622881,1756683038411,-480.0,0.00016182,2]
[382622883,1756683038420,-549.64,0.00016182,2]
[382622885,1756683038429,-480.0,0.00016182,2]
[382622887,1756683038439,-1081.15,0.00016182,2]
[382622889,1756683038448,-669.2,0.00016182,2]
[382622891,1756683038456,-480.0,0.00016182,2]
[382622893,1756683038466,-857.52,0.00016182,2]
[382622895,1756683038475,-480.0,0.00016182,2]
[382622897,1756683038485,-1138.49,0.00016182,2]
[382622899,1756683038494,-856.29,0.00016182,2]
[382622901,1756683038503,-480.0,0.00016182,2]
[382622903,1756683038512,-618.89,0.00016182,2]
[382622905,1756683038521,-480.0,0.00016182,2]
[382622907,1756683038530,-480.0,0.00016182,2]
[382622909,1756683038539,-480.0,0.00016182,2]
[382622911,1756683038548,-535.37,0.00016182,2]
[382622913,1756683038558,-816.57,0.00016182,2]
[382622915,1756683038566,-940.71,0.00016182,2]
[382622917,1756683038575,-752.03,0.00016182,2]
[382622919,1756683038584,-480.0,0.00016182,2]
[382622921,1756683038593,-480.0,0.00016182,2]
[382622923,1756683038603,-725.56,0.00016182,2]
[382622925,1756683038613,-480.0,0.00016182,2]
[382622927,1756683038622,-717.47,0.00016182,2]
[382622929,1756683038634,-480.0,0.00016182,2]
[382622931,1756683038643,-785.86,0.00016182,2]
[382622933,1756683038653,-480.0,0.00016182,2]
[382622935,1756683038662,-480.0,0.00016182,2]
[382622937,1756683038671,-823.86,0.00016182,2]
[382622939,1756683038681,-480.0,0.00016182,2]
[382622941,1756683038690,-480.0,0.00016182,2]
[382622943,1756683038701,-480.0,0.00016182,2]
[382622945,1756683038710,-711.38,0.00016182,2]
[382622947,1756683038720,-533.33,0.00016182,2]
[382622949,1756683038730,-480.0,0.00016183,2]
[382622951,1756683038740,-480.0,0.00016183,2]
[382622953,1756683038749,-480.0,0.00016183,2]
[382622955,1756683038760,-480.0,0.00016183,2]
[382622957,1756683038769,-222.43187667,0.00016183,2]
[382622959,1756683038779,-480.0,0.00016183,2]
[382622961,1756683038789,-876.34,0.00016183,2]
[382622963,1756683038799,-480.0,0.00016183,2]
[382622965,1756683038808,-480.0,0.00016183,2]
[382622967,1756683038818,-480.0,0.00016183,2]
[382622969,1756683038828,-480.0,0.00016183,2]
[382622972,1756683038837,-480.0,0.00016183,2]
[382622974,1756683038847,-535.44103704,0.00016183,2]
[382622976,1756683038856,-389.78158814,0.00016183,2]
[382622978,1756683038866,-480.0,0.00016183,2]
[382622980,1756683038878,-480.0,0.00016183,2]
[382622982,1756683038888,-480.0,0.00016183,2]
[382622984,1756683038898,-480.0,0.00016183,2]
[382622986,1756683038907,-480.0,0.00016183,2]
[382622988,1756683038920,-480.0,0.00016183,2]
[382622990,1756683038929,-480.0,0.00016183,2]
[382622992,1756683038939,-366.90315465,0.00016183,2]
[382622994,1756683038948,-480.0,0.00016183,2]
[382622996,1756683038958,-480.0,0.00016183,2]
[382622998,1756683038967,-480.0,0.00016183,2]
[382623000,1756683038977,-480.0,0.00016183,2]
[382623002,1756683038991,-480.0,0.00016183,2]
[382623004,1756683039001,-480.0,0.00016183,2]
[382623006,1756683039010,-361.58620343,0.00016183,2]
[382623008,1756683039019,-480.0,0.00016183,2]
[382623010,1756683039029,-480.0,0.00016183,2]
[382623012,1756683039039,-480.0,0.00016183,2]
[382623014,1756683039048,-480.0,0.00016183,2]
[382623016,1756683039058,-616.66,0.00016183,2]
[382623018,1756683039068,-1140.75,0.00016183,2]
[382623020,1756683039077,-480.0,0.00016183,2]
[382623022,1756683039086,-480.0,0.00016183,2]
[382623024,1756683039095,-480.0,0.00016183,2]
[382623026,1756683039105,-5515.72,0.00016183,2]
[382623028,1756683039113,-838.09,0.00016183,2]
[382623030,1756683039121,-865.93,0.00016183,2]
[382623032,1756683039132,-480.0,0.00016183,2]
[382623034,1756683039143,-1015.86,0.00016183,2]
[382623036,1756683039153,-1254.19,0.00016183,2]
[382623038,1756683039163,-480.0,0.00016183,2]
[382623040,1756683039172,-1177.16,0.00016183,2]
[382623042,1756683039182,-3755.58,0.00016183,2]
[382623044,1756683039191,-846.34,0.00016183,2]
[382623046,1756683039200,-480.0,0.00016183,2]
[382623048,1756683039210,-480.0,0.00016183,2]
[382623050,1756683039220,-480.0,0.00016183,2]
[382623052,1756683039230,-558.93,0.00016183,2]
[382623054,1756683039239,-480.0,0.00016183,2]
[382623056,1756683039249,-5334.7,0.00016183,2]
[382623058,1756683039258,-1526.25,0.00016183,2]
[382623060,1756683039269,-300.32075337,0.00016183,2]
[382623062,1756683039278,-480.0,0.00016183,2]
[382623064,1756683039288,-480.0,0.00016183,2]
[382623067,1756683039298,-480.0,0.00016183,2]
[382623069,1756683039308,-480.0,0.00016183,2]
[382623071,1756683039317,-839.52,0.00016183,2]
[382623073,1756683039327,-480.0,0.00016183,2]
[382623075,1756683039337,-480.0,0.00016183,2]
[382623077,1756683039346,-480.0,0.00016183,2]
[382623079,1756683039355,-480.0,0.00016183,2]
[382623081,1756683039365,-484.38474704,0.00016183,2]
[382623083,1756683039375,-1193.55,0.00016183,2]
[382623085,1756683039386,-663.45847994,0.00016197,2]
[382623087,1756683039398,-2653.83391977,0.00016197,2]
[382623089,1756683039408,-5965.15519317,0.00016197,2]
[382623091,1756683039418,-500.0,0.00016198,2]
[382623093,1756683039430,-151.0,0.000162,2]
[382623095,1756683039439,-189.0156986,0.00016252,2]
[382623097,1756683039449,-1950.96394949,0.00016288,2]
[382623099,1756683039460,-163.414,0.0001629,2]
[382623101,1756683039469,-480.0,0.00016291,2]
[382623104,1756683039479,-958.26,0.00016291,2]
[382623107,1756683039489,-480.0,0.00016291,2]
[382623109,1756683039498,-480.0,0.00016291,2]
[382623111,1756683039508,-848.21,0.00016291,2]
[382623113,1756683039519,-480.0,0.00016291,2]
[382623115,1756683039528,-480.0,0.00016291,2]
[382623117,1756683039538,-480.0,0.00016291,2]
[382623119,1756683039547,-1323.61,0.00016291,2]
[382623121,1756683039558,-480.0,0.00016291,2]
[382623123,1756683039568,-480.0,0.00016291,2]
[382623126,1756683039578,-620.73,0.00016291,2]
[382623128,1756683039588,-1237.94,0.00016291,2]
[382623130,1756683039598,-480.0,0.00016291,2]
[382623132,1756683039608,-480.0,0.00016291,2]
[382623134,1756683039617,-1359.26,0.00016291,2]
[382623136,1756683039628,-480.0,0.00016291,2]
[382623138,1756683039638,-480.0,0.00016291,2]
[382623140,1756683039647,-480.0,0.00016291,2]
[382623142,1756683039657,-480.0,0.00016291,2]
[382623144,1756683039667,-480.0,0.00016291,2]
[382623146,1756683039677,-1076.88,0.00016291,2]
[382623148,1756683039686,-480.0,0.00016291,2]
[382623150,1756683039696,-591.45,0.00016291,2]
[382623152,1756683039705,-480.0,0.00016291,2]
[382623154,1756683039715,-480.0,0.00016291,2]
[382623156,1756683039725,-535.71,0.00016291,2]
[382623158,1756683039734,-480.0,0.00016291,2]
[382623160,1756683039743,-1191.89,0.00016291,2]
[382623162,1756683039753,-480.0,0.00016291,2]
[382623164,1756683039762,-995.91,0.00016291,2]
[382623166,1756683039772,-1030.81,0.00016291,2]
[382623168,1756683039781,-480.0,0.00016291,2]
[382623170,1756683039791,-1051.92,0.00016291,2]
[382623172,1756683039800,-480.0,0.00016291,2]
[382623174,1756683039809,-480.0,0.00016291,2]
[382623176,1756683039818,-480.0,0.00016291,2]
[382623178,1756683039828,-975.55,0.00016291,2]
[382623180,1756683039838,-455.96158309,0.00016291,2]
[382623182,1756683039848,-480.0,0.00016291,2]
[382623184,1756683039857,-1321.75,0.00016291,2]
[382623186,1756683039866,-480.0,0.00016291,2]
[382623188,1756683039876,-521.13,0.00016291,2]
[382623190,1756683039885,-480.0,0.00016291,2]
[382623192,1756683039894,-480.0,0.00016291,2]
[382623194,1756683039903,-1681.48,0.00016291,2]
[382623196,1756683039912,-1072.06,0.00016291,2]
[382623197,1756683039921,-599.75,0.00016291,2]
[382623199,1756683039930,-480.0,0.00016291,2]
[382623202,1756683039943,-5397.55,0.00016294,2]
[382623204,1756683039952,-1164.25,0.00016294,2]
[382623206,1756683039961,-1285.38,0.00016294,2]
[382623208,1756683039970,-480.0,0.00016294,2]
[382623209,1756683039981,-480.0,0.00016294,2]
[382623211,1756683039992,-2325.69,0.00016294,2]
[382623213,1756683040001,-698.34,0.00016294,2]
[382623215,1756683040010,-3260.05,0.00016294,2]
[382623217,1756683040020,-1256.65,0.00016294,2]
[382623219,1756683040030,-606.95,0.00016294,2]
[382623221,1756683040039,-1191.97,0.00016294,2]
[382623223,1756683040048,-480.0,0.00016295,2]
[382623225,1756683040058,-480.0,0.00016295,2]
[382623227,1756683040067,-480.0,0.00016295,2]
[382623229,1756683040076,-480.0,0.00016295,2]
[382623231,1756683040085,-480.0,0.00016295,2]
[382623233,1756683040094,-619.85714217,0.00016295,2]
[382623235,1756683040104,-480.0,0.00016295,2]
[382623237,1756683040113,-480.0,0.00016295,2]
[382623239,1756683040122,-480.0,0.00016295,2]
[382623241,1756683040133,-607.62937422,0.00016295,2]
[382623243,1756683040143,-1193.84,0.00016295,2]
[382623245,1756683040153,-480.0,0.00016295,2]
[382623247,1756683040162,-480.0,0.00016295,2]
[382623250,1756683040173,-1117.47,0.00016295,2]